[Event "Titled Tuesday Blitz August 22 Early 2023"]
[White "Chos, Alexey"]
[Black "Klukin, Kirill"]
[WhiteFideId "14117762"]
[BlackFideId "24199273"]
[WhiteElo "2540"]
[BlackElo "2817"]
[Result "0-1"]
[Round "2"]
[TimeControl "180+1"]
[Date "2023.08.22"]
[WhiteClock "0:02:20"]
[BlackClock "0:01:01"]
[Board "64"]

1. c4 {[%clk 0:03:00]}  c5 {[%clk 0:02:59]} 2. g3 {[%clk 0:03:01]}  g6 {[%clk 0:02:59]} 3. Bg2 {[%clk 0:03:01]}  Bg7 {[%clk 0:03:00]} 4. Nf3 {[%clk 0:03:02]}  Nc6 {[%clk 0:03:01]} 5. O-O {[%clk 0:03:02]}  a6 {[%clk 0:03:01]} 6. e3 {[%clk 0:03:02]}  Rb8 {[%clk 0:02:58]} 7. d4 {[%clk 0:03:02]}  d6 {[%clk 0:02:50]} 8. Nc3 {[%clk 0:02:58]}  Nf6 {[%clk 0:02:46]} 9. dxc5 {[%clk 0:02:58]}  dxc5 {[%clk 0:02:46]} 10. Qxd8+ {[%clk 0:02:58]}  Nxd8 {[%clk 0:02:46]} 11. e4 {[%clk 0:02:58]}  Ne6 {[%clk 0:02:29]} 12. h3 {[%clk 0:02:56]}  b5 {[%clk 0:02:26]} 13. cxb5 {[%clk 0:02:56]}  axb5 {[%clk 0:02:26]} 14. e5 {[%clk 0:02:56]}  Nd7 {[%clk 0:02:24]} 15. Re1 {[%clk 0:02:55]}  Bb7 {[%clk 0:02:22]} 16. Nxb5 {[%clk 0:02:54]}  Bxf3 {[%clk 0:02:21]} 17. Bxf3 {[%clk 0:02:54]}  Rxb5 {[%clk 0:02:22]} 18. Bc6 {[%clk 0:02:54]}  Rb6 {[%clk 0:02:21]} 19. Ba4 {[%clk 0:02:53]}  Kd8 {[%clk 0:02:13]} 20. f4 {[%clk 0:02:52]}  Kc7 {[%clk 0:02:11]} 21. Kg2 {[%clk 0:02:45]}  Ra8 {[%clk 0:02:05]} 22. b3 {[%clk 0:02:45]}  Nd4 {[%clk 0:02:00]} 23. Rd1 {[%clk 0:02:44]}  f6 {[%clk 0:01:59]} 24. exf6 {[%clk 0:02:34]}  Bxf6 {[%clk 0:01:59]} 25. Be3 {[%clk 0:02:34]}  Rd6 {[%clk 0:01:18]} 26. Rac1 {[%clk 0:02:31]}  Ne2 {[%clk 0:01:03]} 27. Rxd6 {[%clk 0:02:29]}  exd6 {[%clk 0:01:01]} 28. Re1 {[%clk 0:02:20]}  Nc3 {[%clk 0:01:01]} 0-1


[Site "https://www.chess.com"]

[Event "Titled Tuesday Blitz August 22 Early 2023"]
[White "Budrewicz, Krzysztof"]
[Black "realmadridfc123"]
[WhiteFideId "1127950"]
[WhiteElo "2540"]
[BlackElo "2805"]
[Result "1/2-1/2"]
[Round "2"]
[TimeControl "180+1"]
[Date "2023.08.22"]
[WhiteClock "0:00:14"]
[BlackClock "0:00:02"]
[Board "65"]

1. d4 {[%clk 0:03:00]}  d5 {[%clk 0:02:58]} 2. c4 {[%clk 0:03:00]}  e6 {[%clk 0:02:57]} 3. Nc3 {[%clk 0:03:00]}  Nf6 {[%clk 0:02:57]} 4. Nf3 {[%clk 0:03:00]}  a6 {[%clk 0:02:50]} 5. e3 {[%clk 0:02:54]}  Nbd7 {[%clk 0:02:50]} 6. b3 {[%clk 0:02:53]}  Be7 {[%clk 0:02:47]} 7. Bb2 {[%clk 0:02:53]}  O-O {[%clk 0:02:48]} 8. Be2 {[%clk 0:02:53]}  b6 {[%clk 0:02:47]} 9. cxd5 {[%clk 0:02:53]}  exd5 {[%clk 0:02:46]} 10. O-O {[%clk 0:02:53]}  Bb7 {[%clk 0:02:47]} 11. Rc1 {[%clk 0:02:51]}  Rc8 {[%clk 0:02:24]} 12. Ne5 {[%clk 0:02:42]}  Nxe5 {[%clk 0:01:59]} 13. dxe5 {[%clk 0:02:42]}  Ne8 {[%clk 0:02:00]} 14. f4 {[%clk 0:02:33]}  Bc5 {[%clk 0:01:49]} 15. Qd3 {[%clk 0:02:27]}  f6 {[%clk 0:01:36]} 16. Bf3 {[%clk 0:01:52]}  fxe5 {[%clk 0:01:29]} 17. Bxd5+ {[%clk 0:01:51]}  Bxd5 {[%clk 0:01:29]} 18. Qxd5+ {[%clk 0:01:51]}  Qxd5 {[%clk 0:01:26]} 19. Nxd5 {[%clk 0:01:52]}  Rd8 {[%clk 0:01:22]} 20. Rfd1 {[%clk 0:01:35]}  Rxd5 {[%clk 0:01:09]} 21. Rxd5 {[%clk 0:01:33]}  Bxe3+ {[%clk 0:01:09]} 22. Kf1 {[%clk 0:01:26]}  Bxc1 {[%clk 0:00:55]} 23. Bxc1 {[%clk 0:01:25]}  exf4 {[%clk 0:00:55]} 24. Kf2 {[%clk 0:01:22]}  Nf6 {[%clk 0:00:53]} 25. Rd4 {[%clk 0:01:14]}  g5 {[%clk 0:00:42]} 26. Kf3 {[%clk 0:01:13]}  Kg7 {[%clk 0:00:37]} 27. h4 {[%clk 0:01:11]}  h6 {[%clk 0:00:37]} 28. hxg5 {[%clk 0:01:11]}  hxg5 {[%clk 0:00:38]} 29. Rc4 {[%clk 0:01:04]}  Nd5 {[%clk 0:00:26]} 30. Rc6 {[%clk 0:01:00]}  Re8 {[%clk 0:00:18]} 31. Bb2+ {[%clk 0:00:58]}  Kf7 {[%clk 0:00:18]} 32. Bd4 {[%clk 0:00:58]}  Re1 {[%clk 0:00:18]} 33. g3 {[%clk 0:00:55]}  Rf1+ {[%clk 0:00:17]} 34. Kg2 {[%clk 0:00:54]}  Rd1 {[%clk 0:00:17]} 35. Be5 {[%clk 0:00:52]}  Ne3+ {[%clk 0:00:17]} 36. Kf3 {[%clk 0:00:50]}  fxg3 {[%clk 0:00:13]} 37. Rxc7+ {[%clk 0:00:48]}  Ke6 {[%clk 0:00:12]} 38. Bxg3 {[%clk 0:00:48]}  Nf5 {[%clk 0:00:13]} 39. Bf2 {[%clk 0:00:47]}  Rd3+ {[%clk 0:00:11]} 40. Ke2 {[%clk 0:00:39]}  Rd6 {[%clk 0:00:11]} 41. Ra7 {[%clk 0:00:36]}  b5 {[%clk 0:00:11]} 42. a4 {[%clk 0:00:36]}  g4 {[%clk 0:00:10]} 43. axb5 {[%clk 0:00:36]}  axb5 {[%clk 0:00:11]} 44. Rb7 {[%clk 0:00:35]}  g3 {[%clk 0:00:11]} 45. Ba7 {[%clk 0:00:34]}  Rd7 {[%clk 0:00:09]} 46. Rxd7 {[%clk 0:00:32]}  Kxd7 {[%clk 0:00:09]} 47. Kf3 {[%clk 0:00:33]}  Ke6 {[%clk 0:00:08]} 48. Kf4 {[%clk 0:00:32]}  g2 {[%clk 0:00:06]} 49. Kf3 {[%clk 0:00:30]}  Kd5 {[%clk 0:00:03]} 50. Kxg2 {[%clk 0:00:28]}  Nd4 {[%clk 0:00:04]} 51. b4 {[%clk 0:00:27]}  Nc2 {[%clk 0:00:04]} 52. Bc5 {[%clk 0:00:27]}  Kc4 {[%clk 0:00:04]} 53. Kf3 {[%clk 0:00:27]}  Nxb4 {[%clk 0:00:05]} 54. Bf8 {[%clk 0:00:28]}  Nc6 {[%clk 0:00:04]} 55. Ke2 {[%clk 0:00:28]}  Kc3 {[%clk 0:00:05]} 56. Kd1 {[%clk 0:00:27]}  Kb2 {[%clk 0:00:05]} 57. Bg7+ {[%clk 0:00:26]}  Kb3 {[%clk 0:00:06]} 58. Kc1 {[%clk 0:00:26]}  Nb4 {[%clk 0:00:06]} 59. Kb1 {[%clk 0:00:25]}  Nd5 {[%clk 0:00:06]} 60. Bh8 {[%clk 0:00:25]}  Ne3 {[%clk 0:00:06]} 61. Bg7 {[%clk 0:00:24]}  Nd5 {[%clk 0:00:07]} 62. Bh8 {[%clk 0:00:24]}  Nc3+ {[%clk 0:00:06]} 63. Kc1 {[%clk 0:00:24]}  Kc4 {[%clk 0:00:07]} 64. Kc2 {[%clk 0:00:25]}  Nd5 {[%clk 0:00:06]} 65. Bg7 {[%clk 0:00:24]}  b4 {[%clk 0:00:07]} 66. Bh8 {[%clk 0:00:24]}  b3+ {[%clk 0:00:07]} 67. Kb2 {[%clk 0:00:24]}  Nb6 {[%clk 0:00:07]} 68. Bg7 {[%clk 0:00:24]}  Na4+ {[%clk 0:00:07]} 69. Ka3 {[%clk 0:00:22]}  Nc5 {[%clk 0:00:08]} 70. Kb2 {[%clk 0:00:22]}  Nd3+ {[%clk 0:00:07]} 71. Ka3 {[%clk 0:00:22]}  Nf4 {[%clk 0:00:07]} 72. Kb2 {[%clk 0:00:23]}  Ne6 {[%clk 0:00:07]} 73. Bf6 {[%clk 0:00:23]}  Nf4 {[%clk 0:00:06]} 74. Bg7 {[%clk 0:00:22]}  Nd5 {[%clk 0:00:05]} 75. Bh8 {[%clk 0:00:22]}  Kb4 {[%clk 0:00:06]} 76. Bg7 {[%clk 0:00:22]}  Ka4 {[%clk 0:00:07]} 77. Bf8 {[%clk 0:00:21]}  Ne3 {[%clk 0:00:07]} 78. Kc3 {[%clk 0:00:20]}  Nd1+ {[%clk 0:00:06]} 79. Kd2 {[%clk 0:00:19]}  Nb2 {[%clk 0:00:04]} 80. Bg7 {[%clk 0:00:19]}  Nc4+ {[%clk 0:00:04]} 81. Kc1 {[%clk 0:00:19]}  Ka3 {[%clk 0:00:05]} 82. Bc3 {[%clk 0:00:18]}  Ka2 {[%clk 0:00:05]} 83. Kd1 {[%clk 0:00:17]}  Kb1 {[%clk 0:00:05]} 84. Bd4 {[%clk 0:00:16]}  Nb2+ {[%clk 0:00:04]} 85. Kd2 {[%clk 0:00:16]}  Na4 {[%clk 0:00:05]} 86. Kd1 {[%clk 0:00:14]}  Nb2+ {[%clk 0:00:03]} 87. Kd2 {[%clk 0:00:13]}  Na4 {[%clk 0:00:03]} 88. Kd1 {[%clk 0:00:13]}  Ka2 {[%clk 0:00:03]} 89. Kc1 {[%clk 0:00:13]}  Ka3 {[%clk 0:00:02]} 90. Kb1 {[%clk 0:00:14]}  b2 {[%clk 0:00:02]} 91. Bxb2+ {[%clk 0:00:14]} 1/2-1/2


[Site "https://www.chess.com"]

[Event "Titled Tuesday Blitz August 22 Early 2023"]
[White "Bauman_Guy"]
[Black "subham777"]
[WhiteElo "2799"]
[BlackElo "2539"]
[Result "1-0"]
[Round "2"]
[TimeControl "180+1"]
[Date "2023.08.22"]
[WhiteClock "0:01:47"]
[BlackClock "0:00:04"]
[Board "66"]

1. e4 {[%clk 0:03:00]}  e6 {[%clk 0:02:59]} 2. d4 {[%clk 0:03:01]}  d5 {[%clk 0:02:58]} 3. Nc3 {[%clk 0:03:02]}  Nf6 {[%clk 0:02:57]} 4. Bg5 {[%clk 0:03:02]}  Be7 {[%clk 0:02:57]} 5. e5 {[%clk 0:03:02]}  Nfd7 {[%clk 0:02:58]} 6. Bxe7 {[%clk 0:02:59]}  Qxe7 {[%clk 0:02:58]} 7. f4 {[%clk 0:03:00]}  a6 {[%clk 0:02:59]} 8. Nf3 {[%clk 0:02:50]}  c5 {[%clk 0:02:57]} 9. dxc5 {[%clk 0:02:40]}  Nc6 {[%clk 0:02:45]} 10. Qd2 {[%clk 0:02:37]}  Qxc5 {[%clk 0:02:40]} 11. Bd3 {[%clk 0:02:37]}  h6 {[%clk 0:02:36]} 12. Qf2 {[%clk 0:02:37]}  Qb4 {[%clk 0:02:34]} 13. O-O-O {[%clk 0:02:35]}  Qxf4+ {[%clk 0:02:33]} 14. Kb1 {[%clk 0:02:34]}  Ncxe5 {[%clk 0:02:32]} 15. Be2 {[%clk 0:02:30]}  Nxf3 {[%clk 0:02:04]} 16. Bxf3 {[%clk 0:02:31]}  O-O {[%clk 0:01:47]} 17. Rhe1 {[%clk 0:02:31]}  Ne5 {[%clk 0:01:40]} 18. Rd4 {[%clk 0:02:23]}  Qf6 {[%clk 0:01:35]} 19. Qd2 {[%clk 0:02:19]}  Nc4 {[%clk 0:01:23]} 20. Qd3 {[%clk 0:02:16]}  b5 {[%clk 0:01:06]} 21. a4 {[%clk 0:02:15]}  b4 {[%clk 0:00:56]} 22. Nxd5 {[%clk 0:02:13]}  exd5 {[%clk 0:00:50]} 23. Bxd5 {[%clk 0:02:12]}  Ne5 {[%clk 0:00:34]} 24. Qe4 {[%clk 0:02:01]}  Ng6 {[%clk 0:00:30]} 25. Bxa8 {[%clk 0:01:58]}  Bf5 {[%clk 0:00:30]} 26. Qd5 {[%clk 0:01:57]}  Ne7 {[%clk 0:00:19]} 27. Qe5 {[%clk 0:01:52]}  Rxa8 {[%clk 0:00:10]} 28. Qxf6 {[%clk 0:01:51]}  gxf6 {[%clk 0:00:10]} 29. Rxe7 {[%clk 0:01:52]}  Be6 {[%clk 0:00:11]} 30. Rxb4 {[%clk 0:01:51]}  Rd8 {[%clk 0:00:10]} 31. b3 {[%clk 0:01:50]}  Rd1+ {[%clk 0:00:10]} 32. Kb2 {[%clk 0:01:50]}  Rd2 {[%clk 0:00:11]} 33. h4 {[%clk 0:01:49]}  Rxg2 {[%clk 0:00:09]} 34. Ra7 {[%clk 0:01:50]}  Bf5 {[%clk 0:00:09]} 35. Rc4 {[%clk 0:01:50]}  Bd3 {[%clk 0:00:07]} 36. Rc3 {[%clk 0:01:49]}  Bf1 {[%clk 0:00:06]} 37. Rf3 {[%clk 0:01:47]}  Be2 {[%clk 0:00:06]} 38. Rxf6 {[%clk 0:01:47]}  Kg7 {[%clk 0:00:04]} 39. Raxf7+ {[%clk 0:01:47]}  Kh8 {[%clk 0:00:04]} 40. Re7 {[%clk 0:01:47]} 1-0


[Site "https://www.chess.com"]

[Event "Titled Tuesday Blitz August 22 Early 2023"]
[White "Boraso, Alessio"]
[Black "Gorovets, Andrey"]
[WhiteFideId "848077"]
[BlackFideId "13504037"]
[WhiteElo "2532"]
[BlackElo "2790"]
[Result "0-1"]
[Round "2"]
[TimeControl "180+1"]
[Date "2023.08.22"]
[WhiteClock "0:00:00"]
[BlackClock "0:00:39"]
[Board "69"]

1. e4 {[%clk 0:03:00]}  e5 {[%clk 0:02:56]} 2. Nc3 {[%clk 0:02:59]}  Nc6 {[%clk 0:02:54]} 3. Bc4 {[%clk 0:02:58]}  Bc5 {[%clk 0:02:54]} 4. Qg4 {[%clk 0:02:57]}  Nd4 {[%clk 0:02:51]} 5. Qxg7 {[%clk 0:02:41]}  Qf6 {[%clk 0:02:51]} 6. Qxf6 {[%clk 0:02:31]}  Nxf6 {[%clk 0:02:52]} 7. Bb3 {[%clk 0:02:21]}  Rg8 {[%clk 0:02:26]} 8. Kf1 {[%clk 0:02:19]}  c6 {[%clk 0:02:22]} 9. d3 {[%clk 0:02:11]}  a5 {[%clk 0:02:14]} 10. Na4 {[%clk 0:01:56]}  Ba7 {[%clk 0:02:14]} 11. c4 {[%clk 0:01:26]}  b5 {[%clk 0:02:03]} 12. cxb5 {[%clk 0:01:22]}  cxb5 {[%clk 0:02:01]} 13. Nc3 {[%clk 0:01:22]}  Ba6 {[%clk 0:01:29]} 14. Nd5 {[%clk 0:01:16]}  Nxd5 {[%clk 0:01:26]} 15. Bxd5 {[%clk 0:01:17]}  Rc8 {[%clk 0:01:26]} 16. Be3 {[%clk 0:01:10]}  b4 {[%clk 0:01:19]} 17. Bc4 {[%clk 0:01:03]}  Rxc4 {[%clk 0:01:19]} 18. dxc4 {[%clk 0:01:04]}  Bxc4+ {[%clk 0:01:20]} 19. Ke1 {[%clk 0:00:58]}  Nc2+ {[%clk 0:01:14]} 20. Kd1 {[%clk 0:00:59]}  Nxe3+ {[%clk 0:01:11]} 21. fxe3 {[%clk 0:00:57]}  Rxg2 {[%clk 0:01:02]} 22. Rc1 {[%clk 0:00:47]}  Bd3 {[%clk 0:01:02]} 23. Nf3 {[%clk 0:00:10]}  Be2+ {[%clk 0:00:59]} 24. Kd2 {[%clk 0:00:10]}  Bxf3+ {[%clk 0:01:00]} 25. Kd3 {[%clk 0:00:11]}  Be2+ {[%clk 0:00:59]} 26. Kd2 {[%clk 0:00:09]}  Bc4+ {[%clk 0:00:52]} 27. Ke1 {[%clk 0:00:08]}  Bxa2 {[%clk 0:00:49]} 28. Ra1 {[%clk 0:00:05]}  Rxb2 {[%clk 0:00:48]} 29. Rg1 {[%clk 0:00:03]}  Bxe3 {[%clk 0:00:45]} 30. Rg8+ {[%clk 0:00:03]}  Ke7 {[%clk 0:00:45]} 31. Ra8 {[%clk 0:00:04]}  b3 {[%clk 0:00:39]} 32. Rxa5 {[%clk 0:00:00]}  Bd2+ {[%clk 0:00:39]} 0-1


[Site "https://www.chess.com"]

[Event "Titled Tuesday Blitz August 22 Early 2023"]
[White "Cherniaiev, Tykhon"]
[Black "Badelka, Olga"]
[WhiteFideId "14182360"]
[BlackFideId "13509926"]
[WhiteElo "2790"]
[BlackElo "2529"]
[Result "1-0"]
[Round "2"]
[TimeControl "180+1"]
[Date "2023.08.22"]
[WhiteClock "0:00:59"]
[BlackClock "0:00:00"]
[Board "70"]

1. Nf3 {[%clk 0:03:00]}  d5 {[%clk 0:02:56]} 2. d4 {[%clk 0:03:01]}  Nf6 {[%clk 0:02:54]} 3. c4 {[%clk 0:03:01]}  e6 {[%clk 0:02:53]} 4. Nc3 {[%clk 0:03:00]}  a6 {[%clk 0:02:49]} 5. cxd5 {[%clk 0:03:00]}  exd5 {[%clk 0:02:49]} 6. Bg5 {[%clk 0:03:00]}  Be7 {[%clk 0:02:47]} 7. e3 {[%clk 0:03:01]}  O-O {[%clk 0:02:43]} 8. Bd3 {[%clk 0:03:01]}  h6 {[%clk 0:02:42]} 9. Bh4 {[%clk 0:03:01]}  Re8 {[%clk 0:02:39]} 10. O-O {[%clk 0:03:01]}  Nbd7 {[%clk 0:02:37]} 11. Qc2 {[%clk 0:03:00]}  c6 {[%clk 0:02:26]} 12. Rae1 {[%clk 0:02:43]}  Ne4 {[%clk 0:02:23]} 13. Bxe7 {[%clk 0:02:38]}  Qxe7 {[%clk 0:02:22]} 14. Bxe4 {[%clk 0:02:39]}  dxe4 {[%clk 0:02:22]} 15. Nd2 {[%clk 0:02:39]}  Nf6 {[%clk 0:02:13]} 16. Rb1 {[%clk 0:02:37]}  Bg4 {[%clk 0:02:02]} 17. b4 {[%clk 0:02:34]}  Nd5 {[%clk 0:01:37]} 18. a3 {[%clk 0:02:07]}  Nxc3 {[%clk 0:01:32]} 19. Qxc3 {[%clk 0:02:08]}  Be2 {[%clk 0:01:32]} 20. Rfe1 {[%clk 0:02:07]}  Bd3 {[%clk 0:01:33]} 21. Rb2 {[%clk 0:02:06]}  f5 {[%clk 0:01:32]} 22. Nb3 {[%clk 0:02:04]}  Qf7 {[%clk 0:01:23]} 23. Nc5 {[%clk 0:02:02]}  f4 {[%clk 0:00:49]} 24. exf4 {[%clk 0:01:43]}  Qxf4 {[%clk 0:00:44]} 25. Re3 {[%clk 0:01:44]}  Kh8 {[%clk 0:00:31]} 26. Qe1 {[%clk 0:01:23]}  Bc4 {[%clk 0:00:24]} 27. Nxb7 {[%clk 0:01:16]}  Bd5 {[%clk 0:00:21]} 28. Nc5 {[%clk 0:01:15]}  a5 {[%clk 0:00:16]} 29. bxa5 {[%clk 0:01:11]}  Qf6 {[%clk 0:00:15]} 30. Qc3 {[%clk 0:01:07]}  Reb8 {[%clk 0:00:10]} 31. Nd7 {[%clk 0:00:58]}  Rxb2 {[%clk 0:00:07]} 32. Nxf6 {[%clk 0:00:58]}  Rb1+ {[%clk 0:00:07]} 33. Re1 {[%clk 0:00:59]}  Rxe1+ {[%clk 0:00:07]} 34. Qxe1 {[%clk 0:00:59]}  gxf6 {[%clk 0:00:08]} 35. Qb4 {[%clk 0:01:00]}  Kg7 {[%clk 0:00:00]} 36. Qb7+ {[%clk 0:00:59]} 1-0


[Site "https://www.chess.com"]

[Event "Titled Tuesday Blitz August 22 Early 2023"]
[White "Wagner, Dennis"]
[Black "seopie"]
[WhiteFideId "24650684"]
[WhiteElo "2772"]
[BlackElo "2521"]
[Result "0-1"]
[Round "2"]
[TimeControl "180+1"]
[Date "2023.08.22"]
[WhiteClock "0:00:04"]
[BlackClock "0:00:09"]
[Board "74"]

1. d4 {[%clk 0:03:00]}  Nf6 {[%clk 0:02:59]} 2. Nf3 {[%clk 0:03:01]}  d5 {[%clk 0:02:59]} 3. c4 {[%clk 0:03:00]}  e6 {[%clk 0:02:59]} 4. g3 {[%clk 0:03:01]}  dxc4 {[%clk 0:02:58]} 5. Bg2 {[%clk 0:03:01]}  c6 {[%clk 0:02:58]} 6. O-O {[%clk 0:02:57]}  b5 {[%clk 0:02:54]} 7. b3 {[%clk 0:02:58]}  cxb3 {[%clk 0:02:54]} 8. Qxb3 {[%clk 0:02:58]}  Bb7 {[%clk 0:02:51]} 9. Rd1 {[%clk 0:02:59]}  Nbd7 {[%clk 0:02:48]} 10. Ne5 {[%clk 0:02:55]}  Nxe5 {[%clk 0:02:47]} 11. dxe5 {[%clk 0:02:55]}  Nd7 {[%clk 0:02:48]} 12. Nc3 {[%clk 0:02:51]}  a6 {[%clk 0:02:41]} 13. Ne4 {[%clk 0:02:49]}  Be7 {[%clk 0:02:32]} 14. Ba3 {[%clk 0:02:19]}  O-O {[%clk 0:02:28]} 15. Nd6 {[%clk 0:02:12]}  Bxd6 {[%clk 0:02:26]} 16. Bxd6 {[%clk 0:02:12]}  Re8 {[%clk 0:02:26]} 17. Rac1 {[%clk 0:02:11]}  Qc8 {[%clk 0:02:25]} 18. a4 {[%clk 0:02:05]}  c5 {[%clk 0:02:22]} 19. axb5 {[%clk 0:01:54]}  Bxg2 {[%clk 0:02:21]} 20. Kxg2 {[%clk 0:01:55]}  Qb7+ {[%clk 0:02:20]} 21. f3 {[%clk 0:01:50]}  axb5 {[%clk 0:02:17]} 22. Bxc5 {[%clk 0:01:48]}  Nxe5 {[%clk 0:02:16]} 23. Bd6 {[%clk 0:01:48]}  Nc6 {[%clk 0:02:02]} 24. Rc5 {[%clk 0:01:48]}  b4 {[%clk 0:01:52]} 25. Rdc1 {[%clk 0:01:45]}  Nd4 {[%clk 0:01:41]} 26. Qd3 {[%clk 0:01:33]}  Nf5 {[%clk 0:01:38]} 27. Rb5 {[%clk 0:00:59]}  Qa6 {[%clk 0:01:26]} 28. Bxb4 {[%clk 0:00:55]}  Rad8 {[%clk 0:01:23]} 29. Rd5 {[%clk 0:00:38]}  Ne3+ {[%clk 0:00:59]} 30. Kf2 {[%clk 0:00:38]}  Qxd3 {[%clk 0:00:59]} 31. Rxd3 {[%clk 0:00:38]}  Rxd3 {[%clk 0:00:55]} 32. exd3 {[%clk 0:00:39]}  Nd5 {[%clk 0:00:56]} 33. Bd2 {[%clk 0:00:37]}  h5 {[%clk 0:00:54]} 34. Rc2 {[%clk 0:00:34]}  Ra8 {[%clk 0:00:54]} 35. Ke2 {[%clk 0:00:34]}  Ra1 {[%clk 0:00:52]} 36. Be1 {[%clk 0:00:31]}  Kh7 {[%clk 0:00:51]} 37. Rb2 {[%clk 0:00:29]}  Kg6 {[%clk 0:00:49]} 38. Rc2 {[%clk 0:00:29]}  Rb1 {[%clk 0:00:49]} 39. h4 {[%clk 0:00:24]}  Ne7 {[%clk 0:00:49]} 40. g4 {[%clk 0:00:21]}  Nd5 {[%clk 0:00:49]} 41. Rc4 {[%clk 0:00:08]}  e5 {[%clk 0:00:42]} 42. gxh5+ {[%clk 0:00:03]}  Kxh5 {[%clk 0:00:42]} 43. Rg4 {[%clk 0:00:03]}  Nf4+ {[%clk 0:00:39]} 44. Kd2 {[%clk 0:00:04]}  Kh6 {[%clk 0:00:21]} 45. Bg3 {[%clk 0:00:03]}  Ng6 {[%clk 0:00:20]} 46. Rg5 {[%clk 0:00:03]}  f6 {[%clk 0:00:20]} 47. Rg4 {[%clk 0:00:03]}  Rh1 {[%clk 0:00:20]} 48. Ke3 {[%clk 0:00:03]}  Kh5 {[%clk 0:00:20]} 49. Ra4 {[%clk 0:00:03]}  Rh3 {[%clk 0:00:19]} 50. Bf2 {[%clk 0:00:03]}  Nxh4 {[%clk 0:00:18]} 51. Bxh4 {[%clk 0:00:03]}  Rxh4 {[%clk 0:00:19]} 52. Ra7 {[%clk 0:00:04]}  Kg6 {[%clk 0:00:19]} 53. Rd7 {[%clk 0:00:04]}  Rh8 {[%clk 0:00:18]} 54. Rc7 {[%clk 0:00:04]}  Rh4 {[%clk 0:00:19]} 55. Rd7 {[%clk 0:00:04]}  Kh6 {[%clk 0:00:19]} 56. Re7 {[%clk 0:00:05]}  g6 {[%clk 0:00:18]} 57. Rd7 {[%clk 0:00:04]}  Kg5 {[%clk 0:00:19]} 58. Rd6 {[%clk 0:00:05]}  Ra4 {[%clk 0:00:18]} 59. Rc6 {[%clk 0:00:05]}  f5 {[%clk 0:00:18]} 60. Re6 {[%clk 0:00:05]}  f4+ {[%clk 0:00:18]} 61. Ke2 {[%clk 0:00:04]}  Ra2+ {[%clk 0:00:18]} 62. Ke1 {[%clk 0:00:04]}  Kf5 {[%clk 0:00:19]} 63. Re8 {[%clk 0:00:05]}  Rb2 {[%clk 0:00:18]} 64. Rf8+ {[%clk 0:00:05]}  Kg5 {[%clk 0:00:17]} 65. Re8 {[%clk 0:00:05]}  Kh4 {[%clk 0:00:16]} 66. Rxe5 {[%clk 0:00:05]}  Kg3 {[%clk 0:00:17]} 67. Rg5+ {[%clk 0:00:05]}  Kxf3 {[%clk 0:00:17]} 68. Rxg6 {[%clk 0:00:06]}  Re2+ {[%clk 0:00:13]} 69. Kf1 {[%clk 0:00:05]}  Rd2 {[%clk 0:00:12]} 70. Kg1 {[%clk 0:00:05]}  Rxd3 {[%clk 0:00:10]} 71. Rf6 {[%clk 0:00:04]}  Kg3 {[%clk 0:00:10]} 72. Rg6+ {[%clk 0:00:04]}  Kf3 {[%clk 0:00:10]} 73. Rf6 {[%clk 0:00:04]}  Rd1+ {[%clk 0:00:10]} 74. Kh2 {[%clk 0:00:04]}  Rd8 {[%clk 0:00:11]} 75. Kg1 {[%clk 0:00:04]}  Rg8+ {[%clk 0:00:10]} 76. Kf1 {[%clk 0:00:04]}  Re8 {[%clk 0:00:09]} 77. Rf7 {[%clk 0:00:04]}  Ke3 {[%clk 0:00:09]} 78. Rf6 {[%clk 0:00:03]}  Ra8 {[%clk 0:00:09]} 79. Re6+ {[%clk 0:00:03]}  Kf3 {[%clk 0:00:09]} 80. Rf6 {[%clk 0:00:04]}  Ra1# {[%clk 0:00:09]} 0-1


[Site "https://www.chess.com"]

[Event "Titled Tuesday Blitz August 22 Early 2023"]
[White "Kovalevsky, Stanislav"]
[Black "Kushko, Dmitriy"]
[WhiteFideId "13508598"]
[BlackFideId "14162261"]
[WhiteElo "2521"]
[BlackElo "2768"]
[Result "0-1"]
[Round "2"]
[TimeControl "180+1"]
[Date "2023.08.22"]
[WhiteClock "0:00:02"]
[BlackClock "0:00:02"]
[Board "75"]

1. e4 {[%clk 0:03:00]}  g6 {[%clk 0:02:59]} 2. Nc3 {[%clk 0:03:00]}  Bg7 {[%clk 0:03:00]} 3. g3 {[%clk 0:03:00]}  c5 {[%clk 0:02:59]} 4. Bg2 {[%clk 0:03:01]}  Nc6 {[%clk 0:03:00]} 5. f4 {[%clk 0:03:01]}  d6 {[%clk 0:02:56]} 6. Nf3 {[%clk 0:03:01]}  Bg4 {[%clk 0:02:46]} 7. h3 {[%clk 0:03:01]}  Bxf3 {[%clk 0:02:46]} 8. Qxf3 {[%clk 0:03:00]}  e6 {[%clk 0:02:35]} 9. Ne2 {[%clk 0:02:58]}  Nge7 {[%clk 0:02:34]} 10. c3 {[%clk 0:02:55]}  O-O {[%clk 0:02:32]} 11. h4 {[%clk 0:02:52]}  d5 {[%clk 0:02:18]} 12. d3 {[%clk 0:02:45]}  f5 {[%clk 0:02:00]} 13. h5 {[%clk 0:02:37]}  c4 {[%clk 0:01:50]} 14. exd5 {[%clk 0:02:23]}  cxd3 {[%clk 0:01:47]} 15. dxc6 {[%clk 0:02:19]}  dxe2 {[%clk 0:01:46]} 16. cxb7 {[%clk 0:02:19]}  Rb8 {[%clk 0:01:27]} 17. Qxe2 {[%clk 0:02:19]}  Qd6 {[%clk 0:01:20]} 18. O-O {[%clk 0:01:24]}  gxh5 {[%clk 0:01:03]} 19. Re1 {[%clk 0:01:10]}  Rf6 {[%clk 0:00:57]} 20. Be3 {[%clk 0:01:01]}  Nd5 {[%clk 0:00:56]} 21. Bd4 {[%clk 0:01:00]}  Rg6 {[%clk 0:00:54]} 22. Bxg7 {[%clk 0:00:51]}  Kxg7 {[%clk 0:00:54]} 23. c4 {[%clk 0:00:51]}  Nf6 {[%clk 0:00:31]} 24. Qxe6 {[%clk 0:00:43]}  Qd4+ {[%clk 0:00:26]} 25. Qe3 {[%clk 0:00:39]}  Qxb2 {[%clk 0:00:25]} 26. c5 {[%clk 0:00:20]}  h4 {[%clk 0:00:22]} 27. c6 {[%clk 0:00:14]}  Rxg3 {[%clk 0:00:20]} 28. Qe2 {[%clk 0:00:10]}  Qb6+ {[%clk 0:00:13]} 29. Qf2 {[%clk 0:00:06]}  Qxc6 {[%clk 0:00:13]} 30. Re7+ {[%clk 0:00:05]}  Kh6 {[%clk 0:00:12]} 31. Qxg3 {[%clk 0:00:05]}  Qc5+ {[%clk 0:00:12]} 32. Qf2 {[%clk 0:00:04]}  Qxe7 {[%clk 0:00:12]} 33. Qxh4+ {[%clk 0:00:04]}  Kg6 {[%clk 0:00:10]} 34. Re1 {[%clk 0:00:05]}  Qc5+ {[%clk 0:00:10]} 35. Kh1 {[%clk 0:00:05]}  h6 {[%clk 0:00:07]} 36. Bf3 {[%clk 0:00:03]}  Ng4 {[%clk 0:00:03]} 37. Rg1 {[%clk 0:00:01]}  h5 {[%clk 0:00:03]} 38. Qg5+ {[%clk 0:00:01]}  Kf7 {[%clk 0:00:03]} 39. Qxh5+ {[%clk 0:00:02]}  Ke6 {[%clk 0:00:04]} 40. Qg6+ {[%clk 0:00:02]}  Nf6 {[%clk 0:00:03]} 41. Qg5 {[%clk 0:00:01]}  Rh8+ {[%clk 0:00:02]} 42. Kg2 {[%clk 0:00:02]}  Qc2+ {[%clk 0:00:02]} 43. Kg3 {[%clk 0:00:02]}  Qh2# {[%clk 0:00:02]} 0-1


[Site "https://www.chess.com"]